bitfinex-derivatives/quotes_BTCF0:USTF0_20250827
["timestamp","ask_amount","ask_price","bid_price","bid_amount"]
[1756261446932,1.44960984,111440.0,111430.0,0.04633735]
[1756261447640,1.44960984,111440.0,111430.0,0.08544735]
[1756261447641,0.47063868,111440.0,111430.0,0.08544735]
[1756261447846,1.81364426,111440.0,111430.0,0.08544735]
[1756261448041,0.96012426,111440.0,111430.0,0.14290735]
[1756261448248,1.45288426,111440.0,111430.0,0.16167735]
[1756261448447,1.45288426,111440.0,111430.0,0.13839735]
[1756261448957,1.2598222,111440.0,111430.0,0.13839735]
[1756261449158,1.3495409,111440.0,111430.0,0.13839735]
[1756261449456,1.3495409,111440.0,111430.0,0.10421735]
[1756261450159,0.9432787,111440.0,111430.0,0.13839735]
[1756261450356,1.43276428,111440.0,111430.0,0.10421735]
[1756261450762,1.45335657,111440.0,111430.0,0.13839735]
[1756261451560,1.45335657,111440.0,111430.0,0.10421735]
[1756261452662,1.45335657,111440.0,111430.0,0.16167735]
[1756261452852,1.45335657,111440.0,111430.0,0.10421735]
[1756261455252,1.45335657,111440.0,111430.0,0.08544735]
[1756261456856,0.59939657,111440.0,111430.0,0.08544735]
[1756261457060,1.45115657,111440.0,111430.0,0.16177735]
[1756261457256,2.30144215,111440.0,111430.0,0.04512735]
[1756261457759,1.81195657,111440.0,111430.0,0.04512735]
[1756261457965,0.47071099,111440.0,111430.0,0.16056735]
[1756261458264,1.81171657,111440.0,111430.0,0.10310735]
[1756261458664,1.45403657,111440.0,111430.0,0.10310735]
[1756261460765,0.59939657,111440.0,111430.0,0.10310735]
[1756261460964,1.45395657,111440.0,111430.0,0.16056735]
[1756261461264,1.45395657,111440.0,111430.0,0.13728735]
[1756261461666,1.45395657,111440.0,111430.0,0.10310735]
[1756261463465,1.45395657,111440.0,111430.0,0.16056735]
[1756261464271,1.45395657,111440.0,111430.0,0.13728735]
[1756261464964,1.45395657,111440.0,111430.0,0.10310735]
[1756261465465,1.81475657,111440.0,111430.0,0.10310735]
[1756261467770,1.45395657,111440.0,111430.0,0.10310735]
[1756261468869,1.81475657,111440.0,111430.0,0.10310735]
[1756261469273,1.81475657,111440.0,111430.0,0.08423735]
[1756261469865,1.81475657,111440.0,111430.0,0.11841735]
[1756261470167,1.32527099,111440.0,111430.0,0.16056735]
[1756261470375,0.10991099,111440.0,111430.0,1.35057973]
[1756261470566,0.02019229,111440.0,111430.0,0.86109415]
[1756261470762,0.87507229,111440.0,111430.0,1.35057973]
[1756261471168,0.87507229,111440.0,111430.0,0.86109415]
[1756261472274,1.36455787,111440.0,111430.0,0.86109415]
[1756261472476,0.87507229,111440.0,111430.0,0.86109415]
[1756261473076,0.02019229,111440.0,111430.0,1.35057973]
[1756261473272,0.87479229,111440.0,111430.0,1.35057973]
[1756261474178,0.87479229,111440.0,111430.0,1.46307368]
[1756261475173,0.87479229,111440.0,111430.0,1.77307368]
[1756261475374,0.87479229,111440.0,111430.0,1.77407368]
[1756261475575,0.02019229,111440.0,111430.0,1.77407368]
[1756261476076,0.10991099,111440.0,111430.0,1.77407368]
[1756261476582,0.02019229,111440.0,111430.0,1.77407368]
[1756261477184,0.9440356,111450.0,111440.0,0.2308687]
[1756261477381,1.43352118,111450.0,111440.0,0.5916687]
[1756261477577,0.08431161,111460.0,111450.0,0.1519706]
[1756261477885,1.02593227,111460.0,111450.0,1.09923549]
[1756261478383,1.51541785,111460.0,111450.0,0.60974991]
[1756261479587,1.02593227,111460.0,111450.0,0.60974991]
[1756261479787,1.51541785,111460.0,111450.0,0.60974991]
[1756261479987,1.02593227,111460.0,111450.0,0.60974991]
[1756261480286,1.51541785,111460.0,111450.0,0.60974991]
[1756261481286,0.08274967,111460.0,111450.0,0.60974991]
[1756261481486,0.85388,111460.0,111450.0,0.60974991]
[1756261481981,0.00156191,111470.0,111460.0,0.2308526]
[1756261482188,0.85496191,111470.0,111460.0,1.08113818]
[1756261482696,0.00156191,111470.0,111460.0,1.08113818]
[1756261482986,0.85484191,111470.0,111460.0,1.08113818]
[1756261483285,0.85484191,111470.0,111460.0,0.5916526]
[1756261483584,0.07294262,111470.0,111460.0,0.8416526]
[1756261483787,0.07138071,111470.0,111460.0,1.33113818]
[1756261483984,0.87466401,111480.0,111470.0,0.1778346]
[1756261484282,0.01974401,111480.0,111470.0,0.5916446]
[1756261484487,0.01974401,111480.0,111470.0,1.33113018]
[1756261484784,0.02906612,111480.0,111470.0,1.33113018]
[1756261484987,0.01974401,111480.0,111470.0,1.44362413]
[1756261485991,0.77619272,111490.0,111470.0,1.44362413]
[1756261486191,0.79637265,111490.0,111480.0,0.50195]
[1756261486392,0.79637265,111490.0,111480.0,0.5916365]
[1756261486792,0.80598766,111490.0,111480.0,1.08112208]
[1756261488895,0.87594227,111490.0,111480.0,1.08112208]
[1756261490692,0.0896657,111510.0,111500.0,0.05631]
[1756261490888,0.95415181,111510.0,111500.0,0.50195]
[1756261491299,1.44363739,111510.0,111500.0,0.50195]
[1756261491691,0.95415181,111510.0,111500.0,0.50195]
[1756261491892,1.44363739,111510.0,111500.0,0.50195]
[1756261492092,1.44363739,111510.0,111500.0,0.10932]
[1756261492293,1.44363739,111510.0,111500.0,0.08438]
[1756261492294,1.80599861,111510.0,111500.0,0.08438]
[1756261492494,1.80599861,111510.0,111500.0,0.11621]
[1756261492692,0.95571303,111510.0,111500.0,0.14115]
[1756261492891,1.44519861,111510.0,111500.0,0.14115]
[1756261493088,1.51807423,111510.0,111500.0,0.14115]
[1756261494402,1.02858865,111510.0,111500.0,0.14115]
[1756261494698,1.51807423,111510.0,111500.0,0.14115]
[1756261495099,1.51807423,111510.0,111500.0,0.06539]
[1756261496704,1.51807423,111510.0,111500.0,0.14115]
[1756261498097,1.51807423,111510.0,111500.0,0.11621]
[1756261498597,1.51807423,111510.0,111500.0,0.08438]
[1756261498903,1.02858865,111510.0,111500.0,0.11621]
[1756261499102,1.51807423,111510.0,111500.0,0.14115]
[1756261499304,1.51807423,111510.0,111500.0,0.2308208]
[1756261500702,1.02858865,111510.0,111500.0,0.2308208]
[1756261500901,1.51807423,111510.0,111500.0,0.2308208]
[1756261501491,1.51807423,111510.0,111500.0,0.14115]
[1756261501897,1.51807423,111510.0,111500.0,0.2308208]
[1756261502103,1.02858865,111510.0,111500.0,0.2308208]
[1756261502306,1.51807423,111510.0,111500.0,0.2308208]
[1756261502910,1.02858865,111510.0,111500.0,0.2308208]
[1756261503103,1.51807423,111510.0,111500.0,0.2308208]
[1756261503405,1.42840853,111510.0,111500.0,0.5916208]
[1756261503996,1.02858565,111510.0,111500.0,0.50195]
[1756261504301,1.51807123,111510.0,111500.0,0.50195]
[1756261504501,0.66295123,111510.0,111500.0,0.50195]
[1756261504701,0.08380295,111510.0,111500.0,1.85110638]
[1756261504904,0.87264295,111510.0,111500.0,1.3316208]
[1756261505110,0.87108173,111510.0,111500.0,1.82110638]
[1756261505399,0.02025125,111520.0,111510.0,0.0896627]
[1756261505608,0.87489125,111520.0,111510.0,1.08109828]
[1756261505805,0.88442646,111520.0,111510.0,1.61109828]
[1756261506009,1.79648596,111540.0,111530.0,0.14115]
[1756261506311,1.79648596,111540.0,111530.0,0.60956767]
[1756261506312,0.93874675,111540.0,111530.0,0.60956767]
[1756261506501,1.51787093,111540.0,111530.0,0.38887]
[1756261506703,0.0896547,111520.0,111510.0,0.51992621]
[1756261506902,1.43750028,111520.0,111510.0,0.51992621]
[1756261509005,1.43750028,111520.0,111510.0,0.47012]
[1756261509308,1.43750028,111520.0,111510.0,0.44518]
[1756261509505,1.43750028,111520.0,111510.0,0.02807]
[1756261509709,2.28778586,111520.0,111510.0,0.02807]
[1756261509909,0.0896708,111500.0,111490.0,0.49282624]
[1756261510105,1.44019638,111500.0,111490.0,0.52242624]
[1756261510704,0.0896646,111510.0,111500.0,0.14334]
[1756261510900,0.0896581,111520.0,111500.0,0.41666]
[1756261511105,2.64501628,111530.0,111510.0,0.90614558]
[1756261511305,2.64501628,111530.0,111520.0,0.14334]
[1756261511511,3.50785628,111530.0,111520.0,0.08546]
[1756261512409,3.39705628,111530.0,111520.0,0.0296]
[1756261512609,0.0896627,111510.0,111500.0,0.50414]
[1756261512810,0.9529827,111510.0,111500.0,0.50414]
[1756261513217,0.9529827,111510.0,111500.0,0.11023]
[1756261513513,0.9529827,111510.0,111500.0,0.0672]
[1756261513812,1.44246828,111510.0,111500.0,0.0672]
[1756261514904,1.44246828,111510.0,111500.0,0.0296]
[1756261515106,1.44246828,111510.0,111500.0,0.04546]
[1756261515303,1.52336799,111510.0,111500.0,0.04546]
[1756261515606,1.52336799,111510.0,111500.0,0.0296]
[1756261515809,1.88416799,111510.0,111500.0,0.0296]
[1756261516009,1.3137827,111510.0,111500.0,0.0296]
[1756261516412,1.88416799,111510.0,111500.0,0.0296]
[1756261516606,0.4504627,111510.0,111500.0,0.11857]
[1756261516801,1.02084799,111510.0,111500.0,0.14334]
[1756261517003,1.88600799,111510.0,111500.0,0.14334]
[1756261517307,1.3156227,111510.0,111500.0,0.2330107]
[1756261517907,0.9548227,111510.0,111500.0,0.5938107]
[1756261518411,0.86516,111510.0,111500.0,0.5938107]
[1756261518709,0.9548227,111510.0,111500.0,0.5938107]
[1756261518912,0.9548227,111510.0,111500.0,0.50414]
[1756261519112,0.0896627,111510.0,111500.0,0.50414]
[1756261519310,0.9545427,111510.0,111500.0,0.50414]
[1756261519909,0.86544,111510.0,111500.0,0.50414]
[1756261520315,0.6803747,111520.0,111500.0,0.50414]
[1756261520511,0.10998941,111520.0,111510.0,0.14334]
[1756261520706,0.6803747,111520.0,111510.0,0.14334]
[1756261521013,0.97510941,111520.0,111510.0,0.14334]
[1756261521315,0.02033081,111520.0,111510.0,0.2330027]
[1756261521611,0.97526551,111520.0,111510.0,0.14334]
[1756261521809,0.97526551,111520.0,111510.0,0.50414]
[1756261522221,1.5456508,111520.0,111510.0,0.50414]
[1756261522409,1.5456508,111520.0,111510.0,0.14334]
[1756261522611,1.5456508,111520.0,111510.0,0.08546]
[1756261522817,1.5456508,111520.0,111510.0,0.04546]
[1756261523018,0.97526551,111520.0,111510.0,0.0672]
[1756261523317,1.5456508,111520.0,111510.0,0.0672]
[1756261523712,0.97594551,111520.0,111510.0,0.50414]
[1756261523910,0.97578551,111520.0,111510.0,0.5938027]
[1756261524606,0.88621081,111520.0,111510.0,0.5938027]
[1756261525006,0.97586551,111520.0,111510.0,0.5938027]
[1756261525212,0.79227168,111520.0,111510.0,0.5938027]
[1756261528715,1.36265697,111520.0,111510.0,0.50414]
[1756261529015,0.79227168,111520.0,111510.0,0.50414]
[1756261529207,0.79227168,111520.0,111510.0,0.5938027]
[1756261529612,0.79227168,111520.0,111510.0,0.50414]
[1756261529813,1.36265697,111520.0,111510.0,0.40626]
[1756261531019,1.36265697,111520.0,111510.0,0.0296]
[1756261531414,1.36265697,111520.0,111500.0,0.3904]
[1756261531415,0.0896627,111510.0,111500.0,0.3904]
[1756261531717,0.66004799,111510.0,111500.0,0.3904]
[1756261531921,0.66004799,111510.0,111500.0,0.0296]
[1756261532422,0.66004799,111510.0,111490.0,0.3904]
[1756261532423,0.0896708,111500.0,111490.0,0.3904]
[1756261532622,0.9573508,111500.0,111490.0,0.428]
[1756261532818,1.52773609,111500.0,111490.0,0.428]
[1756261533014,1.52773609,111500.0,111490.0,0.48588]
[1756261533520,0.9573508,111500.0,111490.0,0.50414]
[1756261533717,1.52773609,111500.0,111490.0,0.50414]
[1756261534015,1.52773609,111500.0,111490.0,0.428]
[1756261535117,1.52773609,111500.0,111490.0,0.50414]
[1756261535318,1.44412166,111500.0,111490.0,0.50414]
[1756261536521,1.44412166,111500.0,111490.0,0.14334]
[1756261539922,0.9573508,111500.0,111490.0,0.14334]
[1756261540122,1.44412166,111500.0,111490.0,0.14334]
[1756261540315,0.57644166,111500.0,111490.0,0.14334]
[1756261540516,1.44276166,111500.0,111490.0,0.50414]
[1756261541224,0.9559908,111500.0,111490.0,0.5938188]
[1756261541425,1.44276166,111500.0,111490.0,0.5938188]
[1756261541624,1.44276166,111500.0,111490.0,0.50414]
[1756261544421,0.57643856,111510.0,111490.0,1.08058966]
[1756261544627,0.57643856,111510.0,111500.0,0.50581]
[1756261544826,0.9562677,111510.0,111500.0,0.50581]
[1756261545027,1.44303856,111510.0,111500.0,0.50581]
[1756261545626,1.44259856,111510.0,111500.0,0.50581]
[1756261546126,0.59668865,111520.0,111510.0,0.14501]
[1756261546327,1.46284865,111520.0,111510.0,0.50581]
[1756261548315,1.46284865,111520.0,111510.0,0.44704]
[1756261548627,0.0896627,111510.0,111500.0,0.39011]
[1756261548926,0.57643356,111510.0,111500.0,0.48651]
[1756261549127,0.0896627,111510.0,111500.0,0.50581]
[1756261549328,0.57643356,111510.0,111500.0,0.50581]
[1756261549827,0.57643356,111510.0,111500.0,0.40605]
[1756261550218,0.93723356,111510.0,111500.0,0.04525]
[1756261550623,0.57643356,111510.0,111500.0,0.04525]
[1756261550926,0.57643356,111510.0,111500.0,0.06694]
[1756261551130,0.57643356,111510.0,111500.0,0.14501]
[1756261552027,0.0896788,111490.0,111480.0,0.52384828]
[1756261552227,1.44196966,111490.0,111480.0,0.52384828]
[1756261553330,1.44196966,111490.0,111480.0,0.61453508]
[1756261554429,1.44196966,111490.0,111480.0,0.52484828]
[1756261554631,0.9551988,111490.0,111480.0,0.52484828]
[1756261554830,1.44196966,111490.0,111480.0,0.61453508]
[1756261556829,1.44196966,111490.0,111480.0,0.52484828]
[1756261558530,1.44196966,111490.0,111480.0,0.50046828]
[1756261559229,1.80276966,111490.0,111480.0,0.04834828]
[1756261560536,2.05276966,111490.0,111480.0,0.01903828]
[1756261560941,2.05276966,111490.0,111480.0,0.04834828]
[1756261562941,2.05276966,111490.0,111480.0,0.01903828]
[1756261563236,2.05276966,111490.0,111480.0,0.04834828]
[1756261563545,2.05276966,111490.0,111480.0,0.01903828]
[1756261563840,2.05276966,111490.0,111480.0,0.04834828]
[1756261564946,1.18724966,111490.0,111480.0,0.04834828]
[1756261565140,1.68968966,111490.0,111480.0,0.16404828]
[1756261565339,2.05048966,111490.0,111480.0,0.16404828]
[1756261565841,1.80048966,111490.0,111480.0,0.16404828]
[1756261566044,1.43968966,111490.0,111480.0,0.16404828]
[1756261566238,1.43968966,111490.0,111480.0,0.10527828]
[1756261566650,1.80048966,111490.0,111480.0,0.10527828]
[1756261566944,1.80048966,111490.0,111480.0,0.16404828]
[1756261567346,1.80048966,111490.0,111480.0,0.13966828]
[1756261567647,1.80028966,111490.0,111480.0,0.13966828]
[1756261567841,1.80028966,111490.0,111480.0,0.10527828]
[1756261568335,1.80028966,111490.0,111480.0,0.08597828]
[1756261568533,1.80028966,111490.0,111480.0,0.06428828]
[1756261568739,1.80028966,111490.0,111480.0,0.04834828]
[1756261570443,1.3125588,111490.0,111480.0,0.14253828]
[1756261570639,1.3125988,111490.0,111480.0,0.16144828]
[1756261570835,0.93724966,111490.0,111480.0,0.16144828]
[1756261571147,0.9521188,111490.0,111480.0,0.77224828]
[1756261571347,1.43888966,111490.0,111480.0,0.77224828]
[1756261572041,1.43888966,111490.0,111480.0,0.41144828]
[1756261572640,0.9521188,111490.0,111480.0,0.41144828]
[1756261572838,1.43888966,111490.0,111480.0,0.41144828]
[1756261574949,0.57644966,111490.0,111480.0,0.77224828]
[1756261575144,0.57644966,111490.0,111480.0,0.86193508]
[1756261575349,1.43816966,111490.0,111480.0,0.86193508]
[1756261575844,0.57644966,111490.0,111480.0,0.86193508]
[1756261576042,1.43812966,111490.0,111480.0,0.86193508]
[1756261576950,1.43812966,111490.0,111480.0,0.77224828]
[1756261577344,1.43812966,111490.0,111480.0,0.41144828]
[1756261577546,0.9513588,111490.0,111480.0,0.41144828]
[1756261577747,1.43812966,111490.0,111480.0,0.41144828]
[1756261578244,1.43812966,111490.0,111480.0,0.35526828]
[1756261578942,0.9513588,111490.0,111480.0,0.04834828]
[1756261579245,1.43812966,111490.0,111480.0,0.04834828]
[1756261579557,1.43812966,111490.0,111480.0,0.08635828]
[1756261579851,1.43692966,111490.0,111480.0,0.16144828]
[1756261580044,0.57644966,111490.0,111480.0,0.25113498]
[1756261580253,1.43664966,111490.0,111480.0,0.25113498]
[1756261581157,0.86036,111490.0,111480.0,1.34901584]
[1756261581549,0.9500386,111490.0,111480.0,1.34901584]
[1756261581749,0.9500386,111490.0,111480.0,1.46126641]
[1756261582256,0.59602971,111500.0,111490.0,0.2323986]
[1756261582555,1.45622971,111500.0,111490.0,0.5931986]
[1756261584251,0.10925885,111500.0,111490.0,0.8431986]
[1756261584448,0.0896681,111510.0,111500.0,0.2323906]
[1756261584655,0.9490281,111510.0,111500.0,0.70544117]
[1756261585248,0.0896681,111510.0,111500.0,0.70544117]
[1756261585547,0.9490281,111510.0,111500.0,0.70544117]
[1756261585749,0.9490281,111510.0,111500.0,0.70644117]
[1756261586748,1.43579896,111510.0,111500.0,0.70644117]
[1756261587855,1.43579896,111510.0,111500.0,0.5941906]
[1756261588856,1.43579896,111510.0,111500.0,0.50452]
[1756261591356,1.43579896,111510.0,111500.0,0.44834]
[1756261591554,1.43579896,111510.0,111500.0,0.39142]
[1756261591757,1.43579896,111510.0,111500.0,0.03062]
[1756261592457,1.68579896,111510.0,111500.0,0.001]
[1756261594960,2.04659896,111510.0,111500.0,0.001]
[1756261595454,0.0896706,111500.0,111490.0,0.01798459]
[1756261595762,0.93724146,111500.0,111490.0,0.01798459]
[1756261595960,0.93724146,111500.0,111490.0,0.04760459]
[1756261596761,0.93724146,111500.0,111490.0,0.04960459]
[1756261598154,1.18724146,111500.0,111490.0,0.01998459]
[1756261599962,1.18724146,111500.0,111490.0,0.01798459]
[1756261602161,1.18724146,111500.0,111470.0,0.38505]
[1756261602162,0.0896873,111480.0,111470.0,0.04427]
[1756261602363,1.92066902,111480.0,111470.0,0.08888]
[1756261602569,1.92066902,111480.0,111470.0,0.02857]
[1756261603269,1.94062665,111480.0,111470.0,0.02857]
[1756261603459,0.0897028,111460.0,111450.0,0.22454057]
[1756261603658,0.0897028,111460.0,111450.0,0.11229]
[1756261603659,1.4513026,111460.0,111450.0,0.11229]
[1756261604153,1.50209918,111460.0,111450.0,0.47309]
[1756261604766,1.50209918,111460.0,111450.0,0.47509]
[1756261604767,1.43167366,111460.0,111450.0,0.47509]
[1756261605265,1.44078104,111460.0,111450.0,0.72509]
[1756261605469,1.44078104,111460.0,111450.0,0.50366]
[1756261607861,1.44078104,111460.0,111450.0,0.47136]
[1756261608066,1.44078104,111460.0,111450.0,0.44792]
[1756261608563,1.44078104,111460.0,111450.0,0.50366]
[1756261608761,1.44078104,111460.0,111450.0,0.11056]
[1756261609066,1.44078104,111460.0,111450.0,0.04627]
[1756261609377,1.82183389,111460.0,111450.0,0.03057]
[1756261609662,1.89404619,111460.0,111450.0,0.03057]
[1756261609852,1.40739533,111460.0,111450.0,0.09974]
[1756261610058,1.89416619,111460.0,111450.0,0.04627]
[1756261610259,1.89416619,111460.0,111450.0,0.03057]
[1756261610463,1.89416619,111460.0,111450.0,0.02857]
[1756261611167,1.89616619,111460.0,111450.0,0.02857]
[1756261612971,1.89616619,111460.0,111440.0,0.08339355]
[1756261612972,0.0897106,111450.0,111440.0,0.08339355]
[1756261613267,0.57648146,111450.0,111440.0,0.15881355]
[1756261615069,0.57648146,111450.0,111440.0,0.10307355]
[1756261615271,0.57648146,111450.0,111440.0,0.04652355]
[1756261615272,0.93728146,111450.0,111440.0,0.04652355]
[1756261615571,1.42405232,111450.0,111440.0,0.04652355]
[1756261617569,1.42505232,111450.0,111440.0,0.04652355]
[1756261617773,1.18828146,111450.0,111440.0,0.04652355]
[1756261617973,1.67505232,111450.0,111440.0,0.04652355]
[1756261618571,1.18828146,111450.0,111440.0,0.04652355]
[1756261619073,1.67505232,111450.0,111440.0,0.04652355]
[1756261621572,1.67505232,111450.0,111440.0,0.01370281]
[1756261622672,1.67505232,111450.0,111440.0,0.04227281]
[1756261623059,1.67505232,111450.0,111440.0,0.02857]
[1756261624475,1.5562706,111450.0,111440.0,0.02857]
[1756261624673,2.04304146,111450.0,111440.0,0.02857]
[1756261625873,1.79304146,111450.0,111440.0,0.02857]
[1756261626369,2.27981232,111450.0,111440.0,0.02857]
[1756261626877,2.27949232,111450.0,111440.0,0.02857]
[1756261627175,1.79272146,111450.0,111440.0,0.02857]
[1756261627977,2.27949232,111450.0,111440.0,0.02857]
[1756261630278,2.27949232,111450.0,111440.0,0.04413]
[1756261630468,2.28001232,111450.0,111440.0,0.04413]
[1756261630672,1.79324146,111450.0,111440.0,0.04413]
[1756261631374,1.3064706,111450.0,111440.0,0.04413]
[1756261631572,1.79324146,111450.0,111440.0,0.02857]
[1756261631868,2.28001232,111450.0,111440.0,0.02857]
[1756261632069,2.28001232,111450.0,111440.0,0.04413]
[1756261632577,2.28001232,111450.0,111440.0,0.02857]
[1756261634475,0.0897268,111430.0,111420.0,0.5184432]
[1756261634779,1.43077766,111430.0,111420.0,0.5184432]
[1756261635583,1.43077766,111430.0,111420.0,0.5194432]
[1756261636481,1.43077766,111430.0,111420.0,0.5204432]
[1756261638881,1.43077766,111430.0,111420.0,0.50155]
[1756261639182,0.9440068,111430.0,111420.0,0.14075]
[1756261639579,1.43077766,111430.0,111420.0,0.14075]
[1756261640181,1.43077766,111430.0,111420.0,0.13975]
[1756261641985,0.9440868,111430.0,111420.0,0.13975]
[1756261642290,0.0897268,111430.0,111420.0,0.13975]
[1756261642488,1.43041766,111430.0,111420.0,0.13975]
[1756261643491,0.57649766,111430.0,111420.0,0.13975]
[1756261643688,1.43097766,111430.0,111420.0,0.13975]
[1756261644388,0.57649766,111430.0,111420.0,0.13975]
[1756261644588,1.43077766,111430.0,111420.0,0.13975]
[1756261645496,0.57649766,111430.0,111420.0,0.13975]
[1756261645686,1.43081766,111430.0,111420.0,0.13975]
[1756261646085,1.43077766,111430.0,111420.0,0.13975]
[1756261646690,0.57649766,111430.0,111420.0,0.13975]
[1756261646891,1.43065766,111430.0,111420.0,0.13975]
[1756261649294,1.43065766,111430.0,111420.0,0.08349]
[1756261649697,1.79145766,111430.0,111420.0,0.02755]
[1756261649887,0.0897348,111420.0,111410.0,0.50055]
[1756261650087,0.57650566,111420.0,111410.0,0.50055]
[1756261651297,0.57650566,111420.0,111410.0,0.50155]
[1756261652597,0.57650566,111420.0,111410.0,0.14075]
[1756261653085,0.57650566,111420.0,111410.0,0.08549]
[1756261653291,0.57650566,111420.0,111410.0,0.0674]
[1756261654396,0.93730566,111420.0,111410.0,0.0674]
[1756261655301,0.76495313,111420.0,111410.0,0.0674]
[1756261655502,0.85468793,111420.0,111410.0,0.14175]
[1756261655997,0.85468793,111420.0,111410.0,0.08549]
[1756261656597,1.34740793,111420.0,111410.0,0.14175]
[1756261658592,0.9432548,111420.0,111410.0,0.14175]
[1756261658794,1.43002566,111420.0,111410.0,0.14175]
[1756261660099,0.57650566,111420.0,111410.0,0.14175]
[1756261660296,0.57650566,111420.0,111410.0,0.75255]
[1756261660297,0.9430948,111420.0,111410.0,0.75255]
[1756261660496,0.0897348,111420.0,111410.0,0.8422929]
[1756261660694,0.57650396,111430.0,111420.0,0.08918]
[1756261660900,2.29607671,111450.0,111440.0,0.14499]
[1756261660901,2.28280606,111450.0,111440.0,0.14499]
[1756261661103,0.07937974,111460.0,111450.0,0.2347007]
[1756261661295,0.8536,111460.0,111450.0,0.2347007]
[1756261661601,0.10964913,111480.0,111470.0,0.14499]
[1756261661898,1.45001999,111480.0,111470.0,0.14499]
[1756261662097,1.45001999,111480.0,111470.0,0.06628]
[1756261662500,1.45001999,111480.0,111470.0,0.10061]
[1756261662701,0.96324913,111480.0,111470.0,0.14499]
[1756261662903,0.96324913,111480.0,111470.0,0.12021]
[1756261662904,1.45401999,111480.0,111470.0,0.12021]
[1756261663201,1.45401999,111480.0,111470.0,0.02846]
[1756261663395,2.41732934,111480.0,111470.0,0.02846]
[1756261663607,2.42032934,111480.0,111470.0,0.02846]
[1756261664905,2.49693208,111480.0,111470.0,0.02846]
[1756261665105,2.49993208,111480.0,111470.0,0.02846]
[1756261665306,2.49693208,111480.0,111470.0,0.02846]
[1756261665509,2.49893208,111480.0,111470.0,0.02846]
[1756261665702,2.49993208,111480.0,111470.0,0.02846]
[1756261666202,2.74793208,111480.0,111470.0,0.02846]
[1756261666403,2.74993208,111480.0,111470.0,0.02846]
[1756261666907,2.74993208,111480.0,111450.0,0.39513]
[1756261666908,0.0897025,111460.0,111450.0,0.44668]
[1756261667107,1.42867336,111460.0,111450.0,0.50579]
[1756261667711,1.42867336,111460.0,111450.0,0.06628]
[1756261667905,1.42867336,111460.0,111450.0,0.0448]
[1756261668407,1.42967336,111460.0,111450.0,0.02846]
[1756261668611,1.79047336,111460.0,111450.0,0.02846]
[1756261668807,1.81025637,111460.0,111450.0,0.02846]
[1756261669007,0.0897186,111440.0,111430.0,0.52429045]
[1756261669203,1.42968946,111440.0,111430.0,0.52429045]
[1756261669905,1.33997086,111440.0,111430.0,0.52429045]
[1756261670117,1.42968946,111440.0,111430.0,0.52429045]
[1756261670412,1.42968946,111440.0,111430.0,0.52529045]
[1756261671108,0.9429186,111440.0,111430.0,0.52529045]
[1756261671308,1.42968946,111440.0,111430.0,0.52529045]
[1756261671616,1.42968946,111440.0,111430.0,0.52629045]
[1756261672511,0.9429186,111440.0,111430.0,0.52629045]
[1756261672712,0.9429186,111440.0,111430.0,0.52529045]
[1756261673010,1.42968946,111440.0,111430.0,0.52429045]
[1756261674210,1.42968946,111440.0,111430.0,0.46518045]
[1756261674908,1.42968946,111440.0,111430.0,0.10438045]
[1756261675611,1.43068946,111440.0,111430.0,0.16349045]
[1756261676107,1.43168946,111440.0,111430.0,0.16349045]
[1756261676306,0.9449186,111440.0,111430.0,0.16349045]
[1756261676610,1.43036946,111440.0,111430.0,0.16349045]
[1756261678513,1.43036946,111440.0,111430.0,0.12916045]
[1756261678812,0.0897266,111430.0,111420.0,0.37714]
[1756261679002,0.57649746,111430.0,111420.0,0.06628]
[1756261679614,0.57649746,111430.0,111420.0,0.14499]
[1756261683810,0.57649746,111430.0,111420.0,0.08588]
[1756261684406,0.57649746,111430.0,111420.0,0.12021]
[1756261684613,0.57649746,111430.0,111420.0,0.02846]
[1756261685611,0.57649746,111430.0,111420.0,0.0448]
[1756261685915,1.42761746,111430.0,111420.0,0.14499]
[1756261687406,0.57649746,111430.0,111420.0,0.14499]
[1756261687617,1.42761746,111430.0,111420.0,0.14499]
[1756261688615,1.42761746,111430.0,111420.0,0.5955247]
[1756261688616,0.0897266,111430.0,111420.0,0.5955247]
[1756261688816,0.9406866,111430.0,111420.0,0.5955247]
[1756261690120,1.42745746,111430.0,111420.0,0.5955247]
[1756261690513,1.42745746,111430.0,111420.0,0.50579]
[1756261691718,1.42745746,111430.0,111420.0,0.44668]
[1756261691921,1.42745746,111430.0,111420.0,0.50414]
[1756261692520,0.9406866,111430.0,111420.0,0.50414]
[1756261692721,1.42745746,111430.0,111420.0,0.50414]
[1756261693617,1.42745746,111430.0,111420.0,0.44668]
[1756261693817,1.42745746,111430.0,111420.0,0.38926]
[1756261694121,1.42745746,111430.0,111420.0,0.02846]
[1756261695517,1.42745746,111430.0,111420.0,0.04486]
[1756261695718,1.78825746,111430.0,111420.0,0.04486]
[1756261695918,1.78825746,111430.0,111420.0,0.02846]
[1756261696524,1.78825746,111430.0,111410.0,0.41826]
[1756261696525,0.0897347,111420.0,111410.0,0.0445]
[1756261696718,0.64799729,111420.0,111410.0,0.0445]
[1756261697222,0.92217173,111420.0,111410.0,1.08011366]
[1756261697419,0.92217173,111420.0,111410.0,0.5933428]
[1756261697620,0.85068,111420.0,111410.0,0.5933428]
[1756261697822,0.57649766,111430.0,111420.0,0.2325348]
[1756261698025,1.42717766,111430.0,111420.0,0.5933348]
[1756261698623,1.42717766,111430.0,111420.0,0.5036]
[1756261698925,0.57649766,111430.0,111420.0,0.5933348]
[1756261699125,1.42713766,111430.0,111420.0,0.5933348]
[1756261700228,0.9403668,111430.0,111420.0,0.5933348]
[1756261700527,1.42713766,111430.0,111420.0,0.5933348]
[1756261701927,0.57649766,111430.0,111420.0,0.5933348]
[1756261702118,1.42713766,111430.0,111420.0,0.5933348]
[1756261702531,1.42713766,111430.0,111420.0,0.5036]
[1756261706828,1.42713766,111430.0,111420.0,0.61585057]
[1756261708334,0.94192918,111430.0,111420.0,0.58289057]
[1756261708536,1.42870004,111430.0,111420.0,0.58289057]
[1756261708833,1.42870004,111430.0,111420.0,0.61585057]
[1756261710929,1.42870004,111430.0,111420.0,0.5036]
[1756261711332,0.94192918,111430.0,111420.0,0.5036]
[1756261711531,1.42870004,111430.0,111420.0,0.5036]
[1756261711737,0.57806004,111430.0,111420.0,0.5036]
[1756261711934,1.43218004,111430.0,111420.0,0.5933348]
[1756261712134,0.94512918,111430.0,111420.0,0.70558537]
[1756261712335,1.43190004,111430.0,111420.0,0.70558537]
[1756261712638,0.94512918,111430.0,111420.0,0.70558537]
[1756261712832,0.00156238,111430.0,111420.0,1.44235623]
[1756261713137,0.85396,111430.0,111420.0,1.44235623]
[1756261713337,0.85396,111430.0,111420.0,1.33010566]
[1756261714038,0.9436868,111430.0,111420.0,0.95558537]
[1756261715449,1.43045766,111430.0,111420.0,0.83289057]